fUST/lending_fUST_20250529
["ID","MTS","AMOUNT","RATE_DAILY","PERIOD"]
[362836315,1748481038062,-667.49,0.00019455,2]
[362836316,1748481038072,-486.2334654,0.00019455,2]
[362836317,1748481038081,-635.07,0.00019455,2]
[362836318,1748481038092,-395.24,0.00019456,2]
[362836319,1748481038103,-430.0,0.00019456,2]
[362836320,1748481038113,-433.01745533,0.00019456,2]
[362836321,1748481038123,-430.0,0.00019456,2]
[362836322,1748481038133,-430.0,0.00019456,2]
[362836323,1748481038142,-399.1467619,0.00019457,2]
[362836324,1748481038152,-464.62989246,0.00019457,2]
[362836325,1748481038162,-353.9022108,0.00019457,2]
[362836326,1748481038171,-430.0,0.00019457,2]
[362836327,1748481038180,-430.0,0.00019457,2]
[362836328,1748481038192,-430.0,0.00019457,2]
[362836329,1748481038202,-430.0,0.00019457,2]
[362836330,1748481038212,-430.0,0.00019457,2]
[362836331,1748481038221,-430.0,0.00019457,2]
[362836332,1748481038231,-432.50505906,0.00019457,2]
[362836333,1748481038243,-219.51918069,0.00019457,2]
[362836334,1748481038253,-430.0,0.00019457,2]
[362836335,1748481038262,-430.0,0.00019457,2]
[362836336,1748481038272,-430.0,0.00019457,2]
[362836337,1748481038282,-503.69320224,0.00019457,2]
[362836338,1748481038291,-430.0,0.00019457,2]
[362836339,1748481038301,-438.0377598,0.00019457,2]
[362836340,1748481038310,-356.36046866,0.00019457,2]
[362836341,1748481038320,-439.63371117,0.00019457,2]
[362836342,1748481038330,-430.0,0.00019457,2]
[362836343,1748481038341,-430.0,0.00019457,2]
[362836344,1748481038350,-435.62392556,0.00019457,2]
[362836345,1748481038360,-433.28470478,0.00019457,2]
[362836346,1748481038370,-461.43253327,0.00019457,2]
[362836347,1748481038380,-324.40585733,0.00019457,2]
[362836348,1748481038390,-472.26347243,0.00019457,2]
[362836349,1748481038399,-436.66462417,0.00019457,2]
[362836350,1748481038409,-434.70292089,0.00019457,2]
[362836351,1748481038419,-436.82048172,0.00019457,2]
[362836352,1748481038428,-430.0,0.00019457,2]
[362836353,1748481038438,-432.20131984,0.00019457,2]
[362836354,1748481038447,-432.9444185,0.00019457,2]
[362836355,1748481038457,-407.80788328,0.00019457,2]
[362836356,1748481038467,-431.90544157,0.00019457,2]
[362836357,1748481038476,-430.0,0.00019457,2]
[362836358,1748481038485,-436.70368569,0.00019457,2]
[362836359,1748481038495,-442.91319454,0.00019457,2]
[362836360,1748481038505,-430.0,0.00019457,2]
[362836361,1748481038514,-433.43406547,0.00019457,2]
[362836362,1748481038524,-430.0,0.00019457,2]
[362836363,1748481038534,-430.0,0.00019457,2]
[362836364,1748481038544,-438.16469921,0.00019457,2]
[362836365,1748481038553,-436.2260549,0.00019457,2]
[362836366,1748481038563,-161.55836484,0.00019457,2]
[362836367,1748481038573,-404.12442026,0.00019457,2]
[362836368,1748481038582,-430.0,0.00019457,2]
[362836369,1748481038592,-432.13843004,0.00019457,2]
[362836370,1748481038602,-403.41224234,0.00019457,2]
[362836371,1748481038611,-354.51084947,0.00019457,2]
[362836372,1748481038623,-434.25886517,0.00019457,2]
[362836373,1748481038636,-436.55073967,0.00019457,2]
[362836374,1748481038649,-439.67829286,0.00019457,2]
[362836375,1748481038659,-430.0,0.00019457,2]
[362836376,1748481038670,-430.0,0.00019457,2]
[362836377,1748481038680,-430.0,0.00019457,2]
[362836378,1748481038691,-438.56815262,0.00019457,2]
[362836379,1748481038702,-293.44048431,0.00019457,2]
[362836380,1748481038714,-435.93830144,0.00019457,2]
[362836381,1748481038725,-430.0,0.00019457,2]
[362836382,1748481038734,-430.0,0.00019457,2]
[362836383,1748481038744,-435.83809053,0.00019457,2]
[362836384,1748481038754,-432.63932802,0.00019457,2]
[362836385,1748481038765,-454.43757342,0.00019457,2]
[362836386,1748481038774,-430.0,0.00019457,2]
[362836387,1748481038783,-507.11030133,0.00019457,2]
[362836388,1748481038792,-453.43870867,0.00019457,2]
[362836389,1748481038801,-435.45489787,0.00019457,2]
[362836390,1748481038811,-417.36045446,0.00019457,2]
[362836391,1748481038820,-434.6640967,0.00019457,2]
[362836392,1748481038829,-430.0,0.00019457,2]
[362836393,1748481038840,-441.39666371,0.00019457,2]
[362836394,1748481038848,-434.53339533,0.00019457,2]
[362836395,1748481038857,-437.38279166,0.00019457,2]
[362836396,1748481038865,-151.0,0.00019457,2]
[362836397,1748481038874,-151.0,0.00019457,2]
[362836398,1748481038881,-430.0,0.00019457,2]
[362836399,1748481038890,-438.19266144,0.00019457,2]
[362836400,1748481038899,-431.78694812,0.00019457,2]
[362836401,1748481038908,-500.0,0.00019457,2]
[362836402,1748481038918,-151.194114,0.00019457,2]
[362836403,1748481038927,-430.0,0.00019457,2]
[362836404,1748481038936,-430.0,0.00019457,2]
[362836405,1748481038946,-330.80304459,0.00019457,2]
[362836406,1748481038956,-435.38093492,0.00019457,2]
[362836407,1748481038966,-430.0,0.00019457,2]
[362836408,1748481038976,-450.59077516,0.00019457,2]
[362836409,1748481038986,-151.0,0.00019457,2]
[362836410,1748481038995,-430.0,0.00019457,2]
[362836411,1748481039005,-429.41097889,0.00019457,2]
[362836412,1748481039015,-456.021678,0.00019457,2]
[362836413,1748481039024,-433.76375836,0.00019457,2]
[362836414,1748481039034,-430.0,0.00019457,2]
[362836415,1748481039043,-430.0,0.00019457,2]
[362836416,1748481039052,-375.03083005,0.00019457,2]
[362836417,1748481039062,-430.0,0.00019457,2]
[362836418,1748481039071,-452.72322738,0.00019457,2]
[362836419,1748481039080,-403.0478243,0.00019457,2]
[362836421,1748481039206,-430.0,0.00019457,2]
[362836422,1748481039217,-430.0,0.00019457,2]
[362836423,1748481039226,-430.0,0.00019457,2]
[362836424,1748481039235,-430.0,0.00019457,2]
[362836425,1748481039245,-430.95316853,0.00019457,2]
[362836426,1748481039254,-430.0,0.00019457,2]
[362836427,1748481039264,-430.0,0.00019457,2]
[362836429,1748481039274,-430.0,0.00019457,2]
[362836430,1748481039283,-430.0,0.00019457,2]
[362836431,1748481039292,-430.0,0.00019458,2]
[362836432,1748481039301,-549.15,0.00019458,2]
[362836433,1748481039310,-650.46,0.00019458,2]
[362836434,1748481039319,-430.0,0.00019458,2]
[362836435,1748481039329,-151.0,0.00019458,2]
[362836436,1748481039340,-264.328248,0.00019458,2]
[362836437,1748481039349,-433.15696989,0.00019459,2]
[362836438,1748481039359,-3000.0,0.0001946,2]
[362836439,1748481039368,-151.0,0.0001946,2]
[362836440,1748481039378,-151.0,0.0001946,2]
[362836442,1748481039387,-151.0,0.0001946,2]
[362836443,1748481039397,-151.0,0.0001946,2]
[362836444,1748481039406,-3000.0,0.0001947,2]
[362836445,1748481039416,-151.0,0.0001947,2]
[362836446,1748481039425,-3000.0,0.0001948,2]
[362836447,1748481039434,-3000.0,0.0001949,2]
[362836449,1748481039443,-151.0,0.0001949,2]
[362836450,1748481039453,-151.0,0.0001949,2]
[362836451,1748481039462,-1118.020371,0.0001949,2]
[362836452,1748481039473,-1118.020371,0.0001949,2]
[362836453,1748481039483,-3000.0,0.000195,2]
[362836454,1748481039495,-151.0,0.000195,2]
[362836455,1748481039504,-151.0,0.000195,2]
[362836456,1748481039513,-163.406229,0.000195,2]
[362836457,1748481039522,-163.406229,0.000195,2]
[362836458,1748481039531,-151.0,0.000195,2]
[362836459,1748481039540,-151.0,0.000195,2]
[362836460,1748481039551,-151.0,0.000195,2]
[362836461,1748481039560,-151.0,0.000195,2]
[362836462,1748481039570,-151.0,0.000195,2]
[362836463,1748481039579,-500.0,0.00019509,2]
[362836464,1748481039590,-3000.0,0.0001951,2]
[362836465,1748481039599,-151.0,0.0001951,2]
[362836466,1748481039609,-639.55038236,0.00019518,2]
[362836467,1748481039618,-500.0,0.00019519,2]
[362836468,1748481039627,-500.0,0.00019519,2]
[362836469,1748481039636,-458.39162824,0.00019519,2]
[362836470,1748481039647,-500.0,0.00019519,2]
[362836471,1748481039656,-500.0,0.00019519,2]
[362836472,1748481039665,-500.0,0.00019519,2]
[362836473,1748481039675,-500.0,0.00019519,2]
[362836474,1748481039684,-500.0,0.00019519,2]
[362836475,1748481039693,-204.58708651,0.00019519,2]
[362836476,1748481039702,-212.62119016,0.00019519,2]
[362836478,1748481039711,-500.0,0.00019519,2]
[362836480,1748481039720,-500.0,0.00019519,2]
[362836481,1748481039730,-500.0,0.00019519,2]
[362836483,1748481039739,-3000.0,0.0001952,2]
[362836485,1748481039748,-270.211908,0.0001952,2]
[362836486,1748481039757,-151.0,0.0001952,2]
[362836487,1748481039766,-151.0,0.0001952,2]
[362836488,1748481039776,-151.0,0.0001952,2]
[362836489,1748481039786,-151.0,0.0001952,2]
[362836490,1748481039796,-151.0,0.0001952,2]
[362836491,1748481039806,-151.0,0.0001952,2]
[362836492,1748481039815,-151.0,0.0001952,2]
[362836493,1748481039824,-151.0,0.0001952,2]
[362836494,1748481039834,-1167.986448,0.0001952,2]
[362836495,1748481039845,-1167.986448,0.0001952,2]
[362836496,1748481039854,-205.202281,0.0001952,2]
[362836497,1748481039863,-208.845886,0.0001952,2]
[362836498,1748481039873,-205.202281,0.0001952,2]
[362836500,1748481039882,-208.845886,0.0001952,2]
[362836501,1748481039892,-151.0,0.0001952,2]
[362836502,1748481039901,-151.0,0.0001952,2]
[362836503,1748481039910,-151.0,0.0001952,2]
[362836504,1748481039920,-3000.0,0.0001953,2]
[362836505,1748481039929,-230.075229,0.0001953,2]
[362836506,1748481039939,-176.493064,0.0001953,2]
[362836507,1748481039949,-176.493064,0.0001953,2]
[362836508,1748481039958,-551.558239,0.0001953,2]
[362836509,1748481039969,-551.558239,0.0001953,2]
[362836510,1748481039978,-159.580091,0.0001953,2]
[362836511,1748481039987,-199.743154,0.0001953,2]
[362836512,1748481039996,-151.0,0.0001953,2]
[362836513,1748481040005,-151.0,0.0001953,2]
[362836514,1748481040014,-163.406229,0.0001953,2]
[362836515,1748481040023,-163.406229,0.0001953,2]
[362836516,1748481040033,-151.0,0.0001953,2]
[362836517,1748481040043,-151.0,0.0001953,2]
[362836518,1748481040054,-151.0,0.0001953,2]
[362836519,1748481040063,-151.0,0.0001953,2]
[362836520,1748481040074,-1118.020371,0.0001953,2]
[362836521,1748481040084,-1118.020371,0.0001953,2]
[362836522,1748481040095,-3000.0,0.0001954,2]
[362836523,1748481040104,-151.0,0.0001954,2]
[362836524,1748481040113,-151.0,0.0001954,2]
[362836525,1748481040123,-151.0,0.0001954,2]
[362836526,1748481040132,-151.0,0.0001954,2]
[362836527,1748481040142,-3000.0,0.0001955,2]
[362836528,1748481040151,-151.0,0.0001955,2]
[362836529,1748481040161,-899.377463,0.0001955,2]
[362836530,1748481040171,-899.377463,0.0001955,2]
[362836531,1748481040181,-151.0,0.0001955,2]
[362836532,1748481040197,-151.0,0.0001955,2]
[362836533,1748481040206,-151.0,0.0001955,2]
[362836534,1748481040215,-151.0,0.0001955,2]
[362836535,1748481040225,-151.0,0.0001955,2]
[362836536,1748481040234,-151.0,0.0001955,2]
[362836537,1748481040244,-151.0,0.0001955,2]
[362836538,1748481040253,-151.0,0.0001955,2]
[362836539,1748481040262,-151.0,0.0001955,2]
[362836540,1748481040273,-151.0,0.0001955,2]
[362836541,1748481040283,-151.0,0.0001955,2]
[362836542,1748481040292,-151.0,0.0001955,2]
[362836543,1748481040302,-151.0,0.0001955,2]
[362836544,1748481040311,-151.0,0.0001955,2]
[362836545,1748481040320,-151.0,0.0001955,2]
[362836546,1748481040330,-1167.986448,0.0001955,2]
[362836547,1748481040339,-1167.986448,0.0001955,2]
[362836548,1748481040349,-151.0,0.0001955,2]
[362836549,1748481040358,-151.0,0.0001955,2]
[362836550,1748481040368,-205.202281,0.0001955,2]
[362836551,1748481040377,-208.845886,0.0001955,2]
[362836552,1748481040386,-205.202281,0.0001955,2]
[362836553,1748481040395,-208.845886,0.0001955,2]
[362836554,1748481040405,-151.0,0.0001955,2]
[362836555,1748481040414,-151.0,0.0001955,2]
[362836556,1748481040423,-151.0,0.0001955,2]
[362836557,1748481040433,-151.0,0.0001955,2]
[362836558,1748481040442,-1118.020371,0.0001955,2]
[362836559,1748481040451,-1118.020371,0.0001955,2]
[362836560,1748481040460,-151.0,0.0001955,2]
[362836561,1748481040470,-3000.0,0.0001956,2]
[362836562,1748481040479,-176.493064,0.0001956,2]
[362836563,1748481040489,-176.493064,0.0001956,2]
[362836564,1748481040498,-551.558239,0.0001956,2]
[362836565,1748481040508,-551.558239,0.0001956,2]
[362836566,1748481040517,-163.406229,0.0001956,2]
[362836567,1748481040528,-163.406229,0.0001956,2]
[362836568,1748481040537,-151.0,0.0001956,2]
[362836569,1748481040547,-151.0,0.0001956,2]
[362836570,1748481040556,-151.0,0.0001956,2]
[362836571,1748481040565,-500.0,0.00019569,2]
[362836572,1748481040575,-3537.562326,0.0001957,2]
[362836573,1748481040584,-151.0,0.0001957,2]
[362836574,1748481040593,-151.0,0.0001957,2]
[362836575,1748481040603,-222.588515,0.0001957,2]
[362836576,1748481040612,-154.573541,0.0001957,2]
[362836577,1748481040621,-151.0,0.0001957,2]
[362836578,1748481040631,-1167.986448,0.0001957,2]
[362836579,1748481040639,-1167.986448,0.0001957,2]
[362836580,1748481040649,-430.0,0.00019729,2]
[362836581,1748481040659,-752.79,0.00019729,2]
[362836582,1748481040669,-430.0,0.00019729,2]
[362836583,1748481040680,-667.49,0.00019729,2]
[362836584,1748481040689,-635.07,0.00019729,2]
[362836585,1748481040699,-430.0,0.0001973,2]
[362836586,1748481040710,-430.0,0.0001973,2]
[362836587,1748481040719,-151.0,0.0001973,2]
[362836588,1748481040728,-151.0,0.0001973,2]
[362836589,1748481040737,-151.0,0.0001973,2]
[362836590,1748481040747,-151.0,0.0001973,2]
[362836591,1748481040757,-151.0,0.0001973,2]
[362836592,1748481040766,-1118.020371,0.0001973,2]
[362836593,1748481040775,-1118.020371,0.0001973,2]
[362836594,1748481040783,-430.0,0.0001973,2]
[362836595,1748481040792,-430.0,0.00019731,2]
[362836596,1748481040801,-430.0,0.00019731,2]
[362836597,1748481040810,-409.19657773,0.00019731,2]
[362836598,1748481040819,-430.0,0.00019731,2]
[362836599,1748481040828,-430.0,0.00019731,2]
[362836600,1748481040837,-348.31122026,0.00019731,2]
[362836601,1748481040848,-273.51961082,0.00019731,2]
[362836602,1748481040864,-430.0,0.00019731,2]
[362836603,1748481040874,-430.0,0.00019731,2]
[362836604,1748481040883,-153.655787,0.00019731,2]
[362836605,1748481040893,-430.0,0.00019731,2]
[362836606,1748481040902,-430.0,0.00019731,2]
[362836607,1748481040911,-430.0,0.00019731,2]
[362836608,1748481040920,-430.0,0.00019731,2]
[362836609,1748481040929,-151.0,0.00019731,2]
[362836610,1748481040938,-430.0,0.00019731,2]
[362836611,1748481040947,-430.0,0.00019731,2]
[362836612,1748481040957,-151.0,0.00019731,2]
[362836613,1748481040966,-430.0,0.00019731,2]
[362836614,1748481040975,-430.0,0.00019731,2]
[362836615,1748481040984,-192.84348082,0.00019731,2]
[362836616,1748481040993,-151.0,0.00019732,2]
[362836617,1748481041003,-151.0,0.00019732,2]
[362836618,1748481041012,-151.0,0.00019732,2]
[362836619,1748481041021,-151.0,0.00019732,2]
[362836620,1748481041031,-151.0,0.00019732,2]
[362836621,1748481041040,-151.0,0.00019732,2]
[362836622,1748481041049,-430.0,0.00019732,2]
[362836623,1748481041058,-549.15,0.00019732,2]
[362836624,1748481041068,-650.46,0.00019732,2]
[362836625,1748481041077,-430.0,0.00019732,2]
[362836626,1748481041087,-163.406229,0.00019732,2]
[362836627,1748481041097,-163.406229,0.00019732,2]
[362836628,1748481041107,-205.202281,0.00019732,2]
[362836629,1748481041116,-208.845886,0.00019732,2]
[362836630,1748481041125,-205.202281,0.00019732,2]
[362836631,1748481041134,-208.845886,0.00019732,2]
[362836632,1748481041143,-151.0,0.00019732,2]
[362836633,1748481041153,-151.0,0.00019732,2]
[362836634,1748481041162,-151.0,0.00019732,2]
[362836635,1748481041171,-151.0,0.00019732,2]
[362836636,1748481041181,-151.0,0.00019732,2]
[362836637,1748481041193,-639.55038236,0.00019925,2]
[362836638,1748481041202,-430.0,0.00020003,2]
[362836639,1748481041211,-752.79,0.00020003,2]
[362836640,1748481041221,-430.0,0.00020003,2]
[362836641,1748481041230,-667.49,0.00020003,2]
[362836642,1748481041240,-635.07,0.00020003,2]
[362836643,1748481041249,-254.8,0.00020004,2]
[362836644,1748481041259,-430.0,0.00020004,2]
[362836645,1748481041269,-430.0,0.00020004,2]
[362836646,1748481041278,-299.71923479,0.00020005,2]
[362836647,1748481041288,-430.0,0.00020005,2]
[362836648,1748481041297,-151.0,0.00020005,2]
[362836649,1748481041307,-430.0,0.00020005,2]
[362836650,1748481041316,-151.0,0.00020005,2]
[362836651,1748481041325,-151.0,0.00020005,2]
[362836652,1748481041335,-1118.020371,0.00020005,2]
[362836653,1748481041346,-1118.020371,0.00020005,2]
[362836654,1748481041356,-430.0,0.00020005,2]
[362836655,1748481041366,-430.0,0.00020005,2]
[362836656,1748481041375,-430.0,0.00020006,2]
[362836657,1748481041384,-549.15,0.00020006,2]
[362836658,1748481041394,-650.46,0.00020006,2]
[362836659,1748481041403,-430.0,0.00020006,2]
[362836660,1748481041414,-500.0,0.000201,2]
[362836661,1748481041423,-639.55038236,0.00020182,2]
[362836662,1748481041432,-434.01679854,0.00020203,2]
[362836663,1748481041441,-500.0,0.00020231,2]
[362836664,1748481041450,-500.0,0.00020231,2]
[362836665,1748481041459,-430.0,0.00020277,2]
[362836666,1748481041468,-752.79,0.00020277,2]
[362836667,1748481041477,-430.0,0.00020277,2]
[362836668,1748481041487,-667.49,0.00020277,2]
[362836669,1748481041496,-635.07,0.00020277,2]
[362836670,1748481041506,-430.0,0.00020278,2]
[362836671,1748481041515,-430.0,0.00020278,2]
[362836672,1748481041524,-151.0,0.00020279,2]
[362836673,1748481041534,-1167.986448,0.00020279,2]
[362836674,1748481041544,-1167.986448,0.00020279,2]
[362836675,1748481041554,-430.0,0.00020279,2]
[362836676,1748481041564,-151.0,0.00020279,2]
[362836677,1748481041573,-163.406229,0.00020279,2]
[362836678,1748481041582,-163.406229,0.00020279,2]
[362836679,1748481041591,-430.0,0.00020279,2]
[362836680,1748481041600,-151.0,0.00020279,2]
[362836681,1748481041610,-151.0,0.00020279,2]
[362836682,1748481041619,-1118.020371,0.00020279,2]
[362836683,1748481041628,-1118.020371,0.00020279,2]
[362836684,1748481041638,-430.0,0.00020279,2]
[362836685,1748481041647,-430.0,0.00020279,2]
[362836686,1748481041656,-176.493064,0.0002028,2]
[362836687,1748481041665,-176.493064,0.0002028,2]
[362836688,1748481041674,-551.558239,0.0002028,2]
[362836689,1748481041684,-551.558239,0.0002028,2]
[362836690,1748481041693,-294.29,0.0002028,2]
[362836691,1748481041702,-549.15,0.0002028,2]
[362836692,1748481041712,-650.46,0.0002028,2]
[362836693,1748481041721,-430.0,0.0002028,2]
[362836694,1748481041731,-200.653119,0.00020326,2]
[362836695,1748481041740,-151.0,0.00020326,2]
[362836696,1748481041749,-639.55038236,0.00020328,2]
[362836697,1748481041759,-500.0,0.00020352,2]
[362836698,1748481041768,-500.0,0.00020352,2]
[362836699,1748481041778,-176.3331419,0.00020356,2]
[362836700,1748481041787,-153.0,0.00020356,2]
[362836701,1748481041796,-571.9742255,0.00020356,2]
[362836702,1748481041806,-158.368211,0.00020356,2]
[362836703,1748481041815,-153.0,0.00020356,2]
[362836704,1748481041825,-176.3331419,0.00020356,2]
[362836705,1748481041834,-153.0,0.00020356,2]
[362836706,1748481041843,-571.9742255,0.00020356,2]
[362836707,1748481041853,-500.0,0.00020367,2]
[362836708,1748481041964,-299.9812085,0.00020367,2]
[362836709,1748481041973,-1363.99,0.00020405,3]
[362836710,1748481041983,-682.0,0.00020405,3]
[362836711,1748481041992,-341.0,0.00020405,3]
[362836712,1748481042002,-170.5,0.00020405,3]
[362836713,1748481042011,-511.5,0.00020405,3]
[362836714,1748481042021,-163.406229,0.00020405,2]
[362836715,1748481042031,-163.406229,0.00020405,2]
[362836716,1748481042040,-151.0,0.00020405,2]
[362836717,1748481042050,-151.0,0.00020405,2]
[362836718,1748481042059,-151.0,0.00020412,2]
[362836719,1748481042069,-1167.986448,0.00020412,2]
[362836720,1748481042079,-1167.986448,0.00020412,2]
[362836721,1748481042088,-151.0,0.00020413,2]
[362836722,1748481042098,-151.0,0.00020413,2]
[362836723,1748481042107,-151.0,0.00020413,2]
[362836724,1748481042117,-154.490808,0.00020413,2]
[362836725,1748481042126,-151.0,0.00020413,2]
[362836726,1748481042136,-430.0,0.00020413,2]
[362836727,1748481042145,-151.0,0.00020413,2]
[362836728,1748481042155,-430.0,0.00020413,2]
[362836729,1748481042165,-437.90719592,0.00020413,2]
[362836730,1748481042174,-446.93878354,0.00020413,2]
[362836731,1748481042183,-430.0,0.00020413,2]
[362836732,1748481042196,-176.493064,0.00020413,2]
[362836733,1748481042206,-430.0,0.00020413,2]
[362836734,1748481042216,-481.69122856,0.00020413,2]
[362836735,1748481042225,-176.493064,0.00020413,2]
[362836736,1748481042235,-430.0,0.00020413,2]
[362836737,1748481042244,-551.558239,0.00020413,2]
[362836738,1748481042254,-551.558239,0.00020413,2]
[362836739,1748481042264,-430.0,0.00020413,2]
[362836740,1748481042274,-233.343731,0.00020413,2]
[362836741,1748481042284,-151.0,0.00020413,2]
[362836742,1748481042292,-151.0,0.00020413,2]
[362836743,1748481042302,-151.0,0.00020413,2]
[362836744,1748481042312,-151.0,0.00020413,2]
[362836745,1748481042322,-151.0,0.00020413,2]
[362836747,1748481042331,-151.0,0.00020413,2]
[362836748,1748481042342,-271.851692,0.00020413,2]
[362836749,1748481042353,-151.0,0.00020413,2]
[362836750,1748481042362,-1167.986448,0.00020413,2]
[362836751,1748481042371,-1167.986448,0.00020413,2]
[362836752,1748481042381,-186.803446,0.00020413,2]
[362836753,1748481042390,-163.406229,0.00020413,2]
[362836754,1748481042400,-163.406229,0.00020413,2]
[362836755,1748481042409,-205.202281,0.00020413,2]
[362836756,1748481042419,-205.202281,0.00020413,2]
[362836757,1748481042428,-208.845886,0.00020413,2]
[362836759,1748481042439,-208.845886,0.00020413,2]
[362836760,1748481042448,-205.202281,0.00020413,2]
[362836761,1748481042457,-205.202281,0.00020413,2]
[362836762,1748481042467,-208.845886,0.00020413,2]
[362836763,1748481042476,-208.845886,0.00020413,2]
[362836764,1748481042486,-151.0,0.00020413,2]
[362836765,1748481042495,-151.0,0.00020413,2]
[362836766,1748481042504,-151.0,0.00020413,2]
[362836767,1748481042514,-151.0,0.00020413,2]
[362836768,1748481042523,-151.0,0.00020413,2]
[362836769,1748481042532,-1118.020371,0.00020413,2]
[362836770,1748481042541,-1118.020371,0.00020413,2]
[362836772,1748481042551,-151.0,0.00020413,2]
[362836773,1748481042561,-151.0,0.00020413,2]
[362836774,1748481042570,-151.0,0.00020414,2]
[362836775,1748481042580,-899.377463,0.00020414,2]
[362836776,1748481042591,-899.377463,0.00020414,2]
[362836777,1748481042600,-151.0,0.00020414,2]
[362836778,1748481042609,-151.0,0.00020414,2]
[362836779,1748481042619,-151.0,0.00020414,2]
[362836780,1748481042628,-151.0,0.00020414,2]
[362836781,1748481042638,-151.0,0.00020414,2]
[362836782,1748481042647,-151.0,0.00020414,2]
[362836783,1748481042656,-151.0,0.00020414,2]
[362836784,1748481042666,-151.0,0.00020414,2]
[362836785,1748481042675,-151.0,0.00020414,2]
[362836786,1748481042684,-151.0,0.00020414,2]
[362836787,1748481042693,-151.0,0.00020414,2]
[362836788,1748481042702,-244.588864,0.00020414,2]
[362836790,1748481042712,-1118.020371,0.00020414,2]
[362836791,1748481042721,-1118.020371,0.00020414,2]
[362836792,1748481042730,-208.33,0.00020414,2]
[362836793,1748481042739,-430.0,0.00020415,2]
[362836794,1748481042748,-430.0,0.00020415,2]
[362836795,1748481042757,-430.0,0.00020415,2]
[362836796,1748481042767,-899.377463,0.00020415,2]
[362836797,1748481042776,-899.377463,0.00020415,2]
[362836798,1748481042785,-899.377463,0.00020415,2]
[362836799,1748481042794,-899.377463,0.00020415,2]
[362836800,1748481042803,-430.0,0.00020415,2]
[362836801,1748481042812,-151.0,0.00020415,2]
[362836803,1748481042821,-151.0,0.00020415,2]
[362836804,1748481042830,-151.0,0.00020415,2]
[362836805,1748481042839,-151.0,0.00020415,2]
[362836806,1748481042849,-197.47362,0.00020415,2]
[362836807,1748481042858,-151.0,0.00020415,2]
[362836808,1748481042867,-151.0,0.00020415,2]
[362836809,1748481042877,-151.0,0.00020415,2]
[362836810,1748481042887,-151.0,0.00020415,2]
[362836811,1748481042896,-151.0,0.00020415,2]
[362836812,1748481042905,-151.0,0.00020415,2]
[362836813,1748481042914,-151.0,0.00020415,2]
[362836814,1748481042923,-151.0,0.00020415,2]
[362836815,1748481042933,-151.0,0.00020415,2]
[362836816,1748481042943,-151.0,0.00020415,2]
[362836817,1748481042952,-151.0,0.00020415,2]
[362836818,1748481042961,-151.0,0.00020415,2]
[362836819,1748481042970,-151.0,0.00020415,2]
[362836820,1748481042979,-151.0,0.00020415,2]
[362836822,1748481042989,-160.83129,0.00020415,2]
[362836823,1748481042998,-176.493064,0.00020415,2]
[362836824,1748481043007,-176.493064,0.00020415,2]
[362836825,1748481043017,-176.493064,0.00020415,2]
[362836826,1748481043028,-176.493064,0.00020415,2]
[362836827,1748481043038,-176.493064,0.00020415,2]
[362836828,1748481043047,-176.493064,0.00020415,2]
[362836829,1748481043056,-176.493064,0.00020415,2]